fUSD/lending_fUSD_20240612
["ID","MTS","AMOUNT","RATE_DAILY","PERIOD"]
[329178812,1718152302728,-993.14,0.00022739,2]
[329178813,1718152302738,-2014.17,0.00022739,2]
[329178814,1718152302749,-3779.59,0.00022739,2]
[329178815,1718152302759,-2124.27,0.00022739,2]
[329178816,1718152302769,-500.0,0.00022739,2]
[329178817,1718152302780,-1155.31,0.00022739,2]
[329178818,1718152302790,-2069.74,0.00022739,2]
[329178819,1718152302800,-1829.75,0.00022739,2]
[329178820,1718152302811,-535.12,0.00022739,2]
[329178821,1718152302821,-966.69,0.00022739,2]
[329178822,1718152302831,-7244.58,0.00022739,2]
[329178823,1718152302841,-501.41,0.00022739,2]
[329178824,1718152302851,-2887.58,0.00022739,2]
[329178825,1718152302862,-573.32,0.00022739,2]
[329178826,1718152302872,-887.04,0.00022739,2]
[329178827,1718152302882,-798.17,0.00022739,2]
[329178828,1718152302893,-1475.27,0.00022739,2]
[329178829,1718152302907,-500.0,0.00022739,2]
[329178830,1718152302929,-5774.73,0.00022739,2]
[329178831,1718152302941,-2320.17,0.00022739,2]
[329178832,1718152302952,-4440.03,0.00022739,2]
[329178833,1718152302963,-1224.67,0.00022739,2]
[329178834,1718152302974,-2701.18,0.00022739,2]
[329178835,1718152302985,-500.0,0.00022739,2]
[329178836,1718152302996,-3233.51,0.00022739,2]
[329178837,1718152303007,-500.0,0.00022739,2]
[329178838,1718152303018,-500.0,0.00022739,2]
[329178839,1718152303028,-10039.9,0.00022739,2]
[329178840,1718152303038,-4631.33,0.00022739,2]
[329178841,1718152303048,-5258.17,0.00022739,2]
[329178842,1718152303059,-1536.62,0.00022739,2]
[329178843,1718152303069,-3703.49,0.00022739,2]
[329178844,1718152303080,-664.9,0.00022739,2]
[329178845,1718152303090,-5740.59,0.00022739,2]
[329178846,1718152303100,-679.79,0.00022739,2]
[329178847,1718152303113,-500.0,0.00022739,2]
[329178848,1718152303125,-406.94967505,0.00022739,2]
[329178849,1718152303135,-527.5,0.00022739,2]
[329178850,1718152303146,-1010.03,0.00022739,2]
[329178851,1718152303158,-4174.68,0.00022739,2]
[329178852,1718152303169,-1523.49,0.00022739,2]
[329178853,1718152303179,-826.15,0.00022739,2]
[329178854,1718152303189,-3077.97,0.00022739,2]
[329178855,1718152303199,-500.0,0.00022739,2]
[329178856,1718152303209,-500.0,0.00022739,2]
[329178857,1718152303220,-1737.39,0.00022739,2]
[329178858,1718152303231,-3723.53,0.00022739,2]
[329178859,1718152303242,-1279.11,0.00022739,2]
[329178860,1718152303253,-921.67,0.00022739,2]
[329178861,1718152303264,-3873.2,0.00022739,2]
[329178862,1718152303276,-3554.93,0.00022739,2]
[329178863,1718152303287,-13892.86,0.00022739,2]
[329178864,1718152303298,-1815.54,0.00022739,2]
[329178865,1718152303309,-3828.74,0.00022739,2]
[329178866,1718152303319,-500.0,0.00022739,2]
[329178867,1718152303329,-1478.12,0.00022739,2]
[329178868,1718152303340,-1688.75,0.00022739,2]
[329178869,1718152303350,-2826.64,0.00022739,2]
[329178870,1718152303361,-1745.11,0.00022739,2]
[329178871,1718152303373,-1169.97,0.00022739,2]
[329178872,1718152303385,-2660.92,0.00022739,2]
[329178873,1718152303396,-4162.53,0.00022739,2]
[329178874,1718152303409,-553.25,0.00022739,2]
[329178875,1718152303420,-585.03,0.00022739,2]
[329178876,1718152303430,-1499.27,0.00022739,2]
[329178877,1718152303441,-500.0,0.00022739,2]
[329178878,1718152303451,-500.0,0.00022739,2]
[329178879,1718152303462,-3311.26,0.00022739,2]
[329178880,1718152303473,-500.0,0.00022739,2]
[329178881,1718152303484,-9068.66,0.00022739,2]
[329178882,1718152303494,-5034.1,0.00022739,2]
[329178883,1718152303506,-500.0,0.00022739,2]
[329178884,1718152303517,-1677.98,0.00022739,2]
[329178885,1718152303528,-814.67,0.00022739,2]
[329178886,1718152303540,-4308.06,0.00022739,2]
[329178887,1718152303551,-1697.49,0.00022739,2]
[329178888,1718152303562,-500.0,0.00022739,2]
[329178889,1718152303573,-561.99,0.00022739,2]
[329178890,1718152303585,-2144.81,0.00022739,2]
[329178891,1718152303596,-500.0,0.00022739,2]
[329178892,1718152303608,-1323.25,0.00022739,2]
[329178893,1718152303619,-3545.84,0.00022739,2]
[329178894,1718152303630,-1141.61,0.00022739,2]
[329178895,1718152303642,-1853.92,0.00022739,2]
[329178896,1718152303652,-990.08,0.00022739,2]
[329178897,1718152303664,-3158.79,0.00022739,2]
[329178898,1718152303675,-13300.03,0.00022739,2]
[329178899,1718152303687,-3056.61,0.00022739,2]
[329178900,1718152303698,-4887.15,0.00022739,2]
[329178901,1718152303710,-1422.63,0.00022739,2]
[329178902,1718152303722,-521.15,0.00022739,2]
[329178903,1718152303733,-3636.03,0.00022739,2]
[329178904,1718152303743,-500.0,0.00022739,2]
[329178905,1718152303755,-1437.79,0.00022739,2]
[329178906,1718152303767,-500.0,0.00022739,2]
[329178907,1718152303778,-1459.51,0.00022739,2]
[329178908,1718152303790,-500.0,0.00022739,2]
[329178909,1718152303801,-2751.22,0.00022739,2]
[329178910,1718152303812,-593.82,0.00022739,2]
[329178911,1718152303823,-1998.63,0.00022739,2]
[329178912,1718152303834,-919.64,0.00022739,2]
[329178913,1718152303844,-938.25,0.00022739,2]
[329178914,1718152303855,-1206.33,0.00022739,2]
[329178915,1718152303866,-653.38,0.00022739,2]
[329178916,1718152303878,-500.0,0.00022739,2]
[329178917,1718152303890,-500.0,0.00022739,2]
[329178918,1718152303901,-4598.01,0.00022739,2]
[329178919,1718152303918,-1110.54,0.00022739,2]
[329178920,1718152303933,-2178.93,0.00022739,2]
[329178921,1718152303946,-500.0,0.00022739,2]
[329178922,1718152303958,-3919.34,0.00022739,2]
[329178923,1718152303971,-500.0,0.00022739,2]
[329178924,1718152303982,-2168.86,0.00022739,2]
[329178925,1718152303994,-988.74,0.00022739,2]
[329178926,1718152304005,-1758.54,0.00022739,2]
[329178927,1718152304017,-2592.38,0.00022739,2]
[329178928,1718152304029,-1057.94,0.00022739,2]
[329178929,1718152304040,-1500.0,0.00022824,2]
[329178930,1718152304051,-150.0,0.00022875,7]
[329178931,1718152304061,-631.65,0.00022876,2]
[329178932,1718152304072,-500.0,0.00022876,2]
[329178933,1718152304083,-500.0,0.00022876,2]
[329178934,1718152304094,-250.0,0.00022876,2]
[329178935,1718152304106,-500.0,0.00022876,2]
[329178936,1718152304120,-500.0,0.00022876,2]
[329178937,1718152304131,-500.0,0.00022876,2]
[329178938,1718152304142,-500.0,0.00022876,2]
[329178939,1718152304153,-500.0,0.00022876,2]
[329178940,1718152304164,-500.0,0.00022876,2]
[329178941,1718152304176,-1099.52,0.00022876,2]
[329178942,1718152304187,-500.0,0.00022876,2]
[329178943,1718152304198,-1325.77,0.00022876,2]
[329178944,1718152304209,-500.0,0.00022876,2]
[329178945,1718152304220,-500.0,0.00022876,2]
[329178946,1718152304231,-543.55,0.00022876,2]
[329178947,1718152304242,-500.0,0.00022876,2]
[329178948,1718152304252,-265.33253992,0.00022876,2]
[329178949,1718152304263,-500.0,0.00022876,2]
[329178950,1718152304274,-810.56,0.00022876,2]
[329178951,1718152304285,-500.0,0.00022876,2]
[329178952,1718152304296,-500.0,0.00022876,2]
[329178953,1718152304307,-563.6,0.00022876,2]
[329178954,1718152304317,-604.04,0.00022876,2]
[329178955,1718152304328,-500.0,0.00022876,2]
[329178956,1718152304339,-711.93,0.00022876,2]
[329178957,1718152304351,-555.37,0.00022876,2]
[329178958,1718152304362,-500.0,0.00022876,2]
[329178959,1718152304373,-775.81,0.00022876,2]
[329178960,1718152304385,-500.0,0.00022876,2]
[329178961,1718152304397,-500.0,0.00022876,2]
[329178962,1718152304408,-748.54,0.00022876,2]
[329178963,1718152304419,-750.16,0.00022876,2]
[329178964,1718152304431,-500.0,0.00022876,2]
[329178965,1718152304443,-500.0,0.00022876,2]
[329178966,1718152304456,-500.0,0.00022876,2]
[329178967,1718152304467,-500.0,0.00022876,2]
[329178968,1718152304478,-500.0,0.00022876,2]
[329178969,1718152304490,-500.0,0.00022876,2]
[329178970,1718152304500,-500.0,0.00022876,2]
[329178971,1718152304511,-500.0,0.00022876,2]
[329178972,1718152304522,-500.0,0.00022876,2]
[329178973,1718152304534,-789.95,0.00022876,2]
[329178974,1718152304545,-500.0,0.00022876,2]
[329178975,1718152304557,-500.0,0.00022876,2]
[329178976,1718152304568,-500.0,0.00022876,2]
[329178977,1718152304580,-500.0,0.00022876,2]
[329178978,1718152304591,-966.66,0.00022876,2]
[329178979,1718152304603,-701.89,0.00022876,2]
[329178980,1718152304614,-500.0,0.00022876,2]
[329178981,1718152304624,-500.0,0.00022876,2]
[329178982,1718152304635,-500.0,0.00022876,2]
[329178983,1718152304647,-529.44,0.00022876,2]
[329178984,1718152304661,-727.38,0.00022876,2]
[329178985,1718152304672,-591.24,0.00022876,2]
[329178986,1718152304683,-538.09,0.00022876,2]
[329178987,1718152304693,-200.0,0.00022876,2]
[329178988,1718152304704,-156.06591375,0.00022876,2]
[329178989,1718152304715,-729.66,0.00022876,2]
[329178990,1718152304726,-500.0,0.00022876,2]
[329178991,1718152304736,-500.0,0.00022876,2]
[329178992,1718152304748,-670.93,0.00022876,2]
[329178993,1718152304759,-500.0,0.00022876,2]
[329178994,1718152304770,-500.0,0.00022876,2]
[329178995,1718152304781,-500.0,0.00022876,2]
[329178996,1718152304792,-523.1,0.00022876,2]
[329178997,1718152304802,-988.71,0.00022876,2]
[329178998,1718152304813,-500.0,0.00022876,2]
[329178999,1718152304824,-500.0,0.00022876,2]
[329179000,1718152304836,-530.44,0.00022876,2]
[329179001,1718152304848,-595.33,0.00022876,2]
[329179002,1718152304858,-840.47,0.00022876,2]
[329179003,1718152304869,-1941.81,0.00022876,2]
[329179004,1718152304880,-500.0,0.00022876,2]
[329179005,1718152304891,-561.48,0.00022876,2]
[329179006,1718152304901,-500.0,0.00022876,2]
[329179007,1718152304921,-800.04,0.00022876,2]
[329179008,1718152304933,-1283.53,0.00022876,2]
[329179009,1718152304944,-704.89,0.00022876,2]
[329179010,1718152304955,-1896.67,0.00022876,2]
[329179011,1718152304966,-500.0,0.00022876,2]
[329179012,1718152304976,-518.99,0.00022876,2]
[329179013,1718152304987,-500.0,0.00022876,2]
[329179014,1718152304998,-220.84904144,0.00022876,2]
[329179015,1718152305011,-518.56,0.00022876,2]
[329179016,1718152305022,-1025.14,0.00022876,2]
[329179017,1718152305033,-373.45139871,0.00022876,2]
[329179018,1718152305043,-819.72,0.00022876,2]
[329179019,1718152305054,-1865.88,0.00022876,2]
[329179020,1718152305065,-500.0,0.00022876,2]
[329179021,1718152305076,-651.19,0.00022876,2]
[329179022,1718152305086,-826.56,0.00022876,2]
[329179023,1718152305097,-500.0,0.00022876,2]
[329179024,1718152305112,-1601.82,0.00022876,2]
[329179025,1718152305123,-1568.24,0.00022876,2]
[329179026,1718152305133,-1153.34,0.00022876,2]
[329179027,1718152305144,-544.75,0.00022876,2]
[329179028,1718152305155,-738.52,0.00022876,2]
[329179029,1718152305165,-840.37,0.00022876,2]
[329179030,1718152305176,-546.92331683,0.00022876,2]
[329179031,1718152305186,-500.0,0.00022876,2]
[329179032,1718152305197,-729.39,0.00022876,2]
[329179033,1718152305208,-509.0278831,0.00022876,2]
[329179034,1718152305218,-615.88,0.00022876,2]
[329179035,1718152305229,-540.87,0.00022876,2]
[329179036,1718152305240,-1809.39,0.00022876,2]
[329179037,1718152305251,-1076.6,0.00022876,2]
[329179038,1718152305261,-500.0,0.00022876,2]
[329179039,1718152305272,-816.28,0.00022876,2]
[329179040,1718152305283,-504.47,0.00022876,2]
[329179041,1718152305295,-500.0,0.00022876,2]
[329179042,1718152305306,-500.0,0.00022876,2]
[329179043,1718152305318,-798.81,0.00022876,2]
[329179044,1718152305329,-703.67,0.00022876,2]
[329179045,1718152305340,-512.35,0.00022876,2]
[329179046,1718152305352,-661.03,0.00022876,2]
[329179047,1718152305363,-500.0,0.00022876,2]
[329179048,1718152305374,-2099.17,0.00022876,2]
[329179049,1718152305385,-1005.72,0.00022876,2]
[329179050,1718152305396,-500.0,0.00022876,2]
[329179051,1718152305409,-1340.89,0.00022876,2]
[329179052,1718152305421,-500.0,0.00022876,2]
[329179053,1718152305432,-610.2,0.00022876,2]
[329179054,1718152305442,-783.34,0.00022876,2]
[329179055,1718152305453,-1983.47,0.00022876,2]
[329179056,1718152305464,-1398.35,0.00022876,2]
[329179057,1718152305475,-201.20920835,0.00022876,2]
[329179058,1718152305487,-606.83,0.00022876,2]
[329179059,1718152305498,-621.86,0.00022876,2]
[329179060,1718152305509,-500.0,0.00022876,2]
[329179061,1718152305520,-504.13,0.00022876,2]
[329179062,1718152305531,-1012.19,0.00022876,2]
[329179063,1718152305541,-783.93,0.00022876,2]
[329179064,1718152305553,-500.0,0.00022876,2]
[329179065,1718152305564,-1202.81,0.00022876,2]
[329179066,1718152305576,-1163.8,0.00022876,2]
[329179067,1718152305587,-500.0,0.00022876,2]
[329179068,1718152305598,-907.37,0.00022876,2]
[329179069,1718152305609,-565.33,0.00022876,2]
[329179070,1718152305620,-606.13,0.00022876,2]
[329179071,1718152305631,-984.93,0.00022876,2]
[329179072,1718152305642,-1994.75,0.00022876,2]
[329179073,1718152305653,-500.0,0.00022876,2]
[329179074,1718152305667,-1645.17,0.00022876,2]
[329179075,1718152305677,-500.0,0.00022876,2]
[329179076,1718152305688,-771.29,0.00022876,2]
[329179077,1718152305699,-590.08,0.00022876,2]
[329179078,1718152305977,-1133.5,0.00022876,2]
[329179079,1718152305996,-500.0,0.00022876,2]
[329179080,1718152306006,-500.0,0.00022876,2]
[329179081,1718152306017,-500.0,0.00022876,2]
[329179082,1718152306028,-968.94,0.00022876,2]
[329179083,1718152306039,-1789.81,0.00022876,2]
[329179084,1718152306051,-500.0,0.00022876,2]
[329179085,1718152306061,-1439.21,0.00022876,2]
[329179086,1718152306071,-500.0,0.00022876,2]
[329179087,1718152306082,-500.0,0.00022876,2]
[329179088,1718152306092,-500.0,0.00022876,2]
[329179089,1718152306102,-529.89,0.00022876,2]
[329179090,1718152306116,-1448.71,0.00022876,2]
[329179091,1718152306128,-500.0,0.00022876,2]
[329179092,1718152306138,-1812.13,0.00022876,2]
[329179093,1718152306149,-514.1,0.00022876,2]
[329179094,1718152306161,-500.0,0.00022876,2]
[329179095,1718152306171,-500.0,0.00022876,2]
[329179096,1718152306182,-534.56,0.00022876,2]
[329179097,1718152306198,-500.0,0.00022876,2]
[329179098,1718152306209,-1485.3,0.00022876,2]
[329179099,1718152306220,-365.258247,0.00022876,2]
[329179100,1718152306231,-614.92,0.00022876,2]
[329179101,1718152306242,-766.83,0.00022876,2]
[329179102,1718152306253,-633.23,0.00022876,2]
[329179103,1718152306265,-700.18,0.00022876,2]
[329179104,1718152306277,-916.34,0.00022876,2]
[329179105,1718152306288,-500.0,0.00022876,2]
[329179106,1718152306299,-627.02,0.00022876,2]
[329179107,1718152306310,-500.0,0.00022876,2]
[329179108,1718152306321,-500.0,0.00022876,2]
[329179109,1718152306333,-500.0,0.00022876,2]
[329179110,1718152306345,-500.0,0.00022876,2]
[329179111,1718152306358,-500.0,0.00022876,2]
[329179112,1718152306370,-604.68,0.00022876,2]
[329179113,1718152306386,-500.0,0.00022876,2]
[329179114,1718152306397,-517.38,0.00022876,2]
[329179115,1718152306410,-903.25,0.00022876,2]
[329179116,1718152306421,-500.0,0.00022876,2]
[329179117,1718152306432,-1616.45,0.00022876,2]
[329179118,1718152306443,-520.01269041,0.00022876,2]
[329179119,1718152306454,-1465.81,0.00022876,2]
[329179120,1718152306465,-500.0,0.00022876,2]
[329179121,1718152306476,-1848.49,0.00022876,2]
[329179122,1718152306487,-500.0,0.00022876,2]
[329179123,1718152306498,-672.78,0.00022876,2]
[329179124,1718152306510,-742.65,0.00022876,2]
[329179125,1718152306521,-1031.5,0.00022876,2]
[329179126,1718152306532,-500.0,0.00022876,2]
[329179127,1718152306543,-500.0,0.00022876,2]
[329179128,1718152306555,-945.42,0.00022876,2]
[329179129,1718152306569,-807.6,0.00022876,2]
[329179130,1718152306581,-521.83,0.00022876,2]
[329179131,1718152306592,-1377.76,0.00022876,2]
[329179132,1718152306603,-975.07,0.00022876,2]
[329179133,1718152306614,-504.6,0.00022876,2]
[329179134,1718152306626,-1135.56,0.00022876,2]
[329179135,1718152306637,-500.0,0.00022876,2]
[329179136,1718152306648,-735.45,0.00022876,2]
[329179137,1718152306660,-1889.55,0.00022876,2]
[329179138,1718152306671,-2234.48,0.00022876,2]
[329179139,1718152306682,-500.0,0.00022876,2]
[329179140,1718152306692,-500.0,0.00022876,2]
[329179141,1718152306703,-669.88,0.00022876,2]
[329179142,1718152306714,-902.77,0.00022876,2]
[329179143,1718152306725,-1437.12,0.00022876,2]
[329179144,1718152306736,-500.0,0.00022876,2]
[329179145,1718152306747,-872.07,0.00022876,2]
[329179146,1718152306758,-832.07,0.00022876,2]
[329179147,1718152306769,-595.17,0.00022876,2]
[329179148,1718152306780,-500.0,0.00022876,2]
[329179149,1718152306791,-506.33,0.00022876,2]
[329179150,1718152306803,-678.38,0.00022876,2]
[329179151,1718152306814,-606.11865516,0.00022876,2]
[329179152,1718152306825,-1748.56,0.00022876,2]
[329179153,1718152306836,-500.0,0.00022876,2]
[329179154,1718152306847,-766.68,0.00022876,2]
[329179155,1718152306858,-777.5,0.00022876,2]
[329179156,1718152306869,-1361.98,0.00022876,2]
[329179157,1718152306880,-500.0,0.00022876,2]
[329179158,1718152306891,-578.45428931,0.00022876,2]
[329179159,1718152306902,-500.0,0.00022876,2]
[329179160,1718152306920,-522.21,0.00022876,2]
[329179161,1718152306933,-500.0,0.00022876,2]
[329179162,1718152306945,-2220.69,0.00022876,2]
[329179163,1718152306956,-975.31,0.00022876,2]
[329179164,1718152306967,-500.0,0.00022876,2]
[329179165,1718152306979,-500.0,0.00022876,2]
[329179166,1718152306990,-864.77,0.00022876,2]
[329179167,1718152307001,-592.88,0.00022876,2]
[329179168,1718152307012,-500.0,0.00022876,2]
[329179169,1718152307022,-500.0,0.00022876,2]
[329179170,1718152307033,-664.93,0.00022876,2]
[329179171,1718152307044,-1633.51,0.00022876,2]
[329179172,1718152307055,-647.1,0.00022876,2]
[329179173,1718152307066,-500.0,0.00022876,2]
[329179174,1718152307077,-500.0,0.00022876,2]
[329179175,1718152307087,-500.0,0.00022876,2]
[329179176,1718152307098,-500.0,0.00022876,2]
[329179177,1718152307110,-758.29,0.00022876,2]
[329179178,1718152307122,-500.0,0.00022876,2]
[329179179,1718152307132,-1322.83,0.00022876,2]
[329179180,1718152307143,-500.0,0.00022876,2]
[329179181,1718152307154,-1150.01,0.00022876,2]
[329179182,1718152307166,-702.84,0.00022876,2]
[329179183,1718152307177,-500.0,0.00022876,2]
[329179184,1718152307188,-760.22,0.00022876,2]
[329179185,1718152307200,-500.0,0.00022876,2]
[329179186,1718152307210,-500.0,0.00022876,2]
[329179187,1718152307220,-384.11483486,0.00022876,2]
[329179188,1718152307231,-611.42,0.00022876,2]
[329179189,1718152307242,-500.0,0.00022876,2]
[329179190,1718152307252,-500.0,0.00022876,2]
[329179191,1718152307263,-500.0,0.00022876,2]
[329179192,1718152307274,-386.76,0.00022876,2]
[329179193,1718152307286,-1302.36,0.00022876,2]
[329179194,1718152307296,-500.0,0.00022876,2]
[329179195,1718152307307,-770.19,0.00022876,2]
[329179196,1718152307318,-583.36,0.00022876,2]
[329179197,1718152307330,-500.0,0.00022876,2]
[329179198,1718152307340,-500.0,0.00022876,2]
[329179199,1718152307351,-1251.7,0.00022876,2]
[329179200,1718152307363,-2724.7,0.00022876,2]
[329179201,1718152307373,-1242.44,0.00022876,2]
[329179202,1718152307384,-958.23,0.00022876,2]
[329179203,1718152307395,-715.59,0.00022876,2]
[329179204,1718152307407,-500.0,0.00022876,2]
[329179205,1718152307419,-581.19,0.00022876,2]
[329179206,1718152307430,-859.34,0.00022876,2]
[329179207,1718152307441,-2185.89,0.00022876,2]
[329179208,1718152307452,-1285.65,0.00022876,2]
[329179209,1718152307464,-565.93,0.00022876,2]
[329179210,1718152307475,-637.51,0.00022876,2]
[329179211,1718152307485,-500.0,0.00022876,2]
[329179212,1718152307496,-1027.85,0.00022876,2]
[329179213,1718152307507,-500.0,0.00022876,2]
[329179214,1718152307518,-1828.02,0.00022876,2]
[329179215,1718152307529,-1832.91,0.00022876,2]
[329179216,1718152307540,-500.0,0.00022876,2]
[329179217,1718152307552,-879.61,0.00022876,2]
[329179218,1718152307562,-1675.58,0.00022876,2]
[329179219,1718152307574,-843.32,0.00022876,2]
[329179220,1718152307585,-775.96,0.00022876,2]
[329179221,1718152307596,-546.12,0.00022876,2]
[329179222,1718152307607,-2473.16,0.00022876,2]
[329179223,1718152307618,-500.0,0.00022876,2]
[329179224,1718152307629,-1644.66,0.00022876,2]
[329179225,1718152307641,-6166.54,0.00022876,2]
[329179226,1718152307652,-608.83,0.00022876,2]
[329179227,1718152307666,-500.0,0.00022876,2]
[329179228,1718152307677,-1432.45,0.00022876,2]
[329179229,1718152307688,-11639.91,0.00022876,2]
[329179230,1718152307699,-684.92,0.00022876,2]
[329179231,1718152307710,-500.0,0.00022876,2]
[329179232,1718152307721,-720.68,0.00022876,2]
[329179233,1718152307733,-836.87,0.00022876,2]
[329179234,1718152307745,-2116.39,0.00022876,2]
[329179235,1718152307756,-2982.93,0.00022876,2]
[329179236,1718152307768,-500.0,0.00022876,2]
[329179237,1718152307779,-6038.81,0.00022876,2]
[329179238,1718152307790,-500.0,0.00022876,2]
[329179239,1718152307801,-2381.43,0.00022876,2]
[329179240,1718152307813,-544.79,0.00022876,2]
[329179241,1718152307825,-500.0,0.00022876,2]
[329179242,1718152307837,-3028.7,0.00022876,2]
[329179243,1718152307848,-386.5311088,0.00022876,2]
[329179244,1718152307861,-1373.33,0.00022876,2]
[329179245,1718152307873,-1677.62,0.00022876,2]
[329179246,1718152307884,-1337.01,0.00022876,2]
[329179247,1718152307895,-714.82,0.00022876,2]
[329179248,1718152307908,-500.0,0.00022876,2]
[329179249,1718152307933,-673.21,0.00022876,2]
[329179250,1718152307945,-8750.37,0.00022876,2]
[329179251,1718152307956,-500.0,0.00022876,2]
[329179252,1718152307968,-799.51,0.00022876,2]
[329179253,1718152307980,-5029.8,0.00022876,2]
[329179254,1718152307992,-1374.54,0.00022876,2]
[329179255,1718152308004,-55467.75,0.00022876,2]
[329179256,1718152308016,-14635.7,0.00022876,2]
[329179257,1718152308028,-500.0,0.00022876,2]
[329179258,1718152308039,-500.0,0.00022876,2]
[329179259,1718152308049,-1639.97,0.00022876,2]
[329179260,1718152308060,-500.0,0.00022876,2]
[329179261,1718152308072,-1476.61,0.00022876,2]
[329179262,1718152308082,-500.0,0.00022876,2]
[329179263,1718152308093,-1694.28,0.00022876,2]
[329179264,1718152308104,-611.49,0.00022876,2]
[329179265,1718152308120,-8487.8,0.00022876,2]
[329179266,1718152308130,-500.0,0.00022876,2]
[329179267,1718152308140,-500.0,0.00022876,2]
[329179268,1718152308151,-4233.25,0.00022876,2]
[329179269,1718152308164,-31639.75,0.00022876,2]
[329179270,1718152308175,-3757.38,0.00022876,2]
[329179271,1718152308186,-1040.34,0.00022876,2]
[329179272,1718152308197,-500.0,0.00022876,2]
[329179273,1718152308208,-500.0,0.00022876,2]
[329179274,1718152308220,-1454.99,0.00022876,2]
[329179275,1718152308231,-859.52,0.00022876,2]
[329179276,1718152308242,-2491.31,0.00022876,2]
[329179277,1718152308253,-2280.28,0.00022876,2]
[329179278,1718152308264,-667.99,0.00022876,2]
[329179279,1718152308275,-500.0,0.00022876,2]
[329179280,1718152308286,-948.31,0.00022876,2]
[329179281,1718152308297,-3248.8,0.00022876,2]
[329179282,1718152308308,-1784.52,0.00022876,2]
[329179283,1718152308320,-2626.46,0.00022876,2]
[329179284,1718152308330,-500.0,0.00022876,2]
[329179285,1718152308342,-1004.2,0.00022876,2]
[329179286,1718152308352,-1145.88,0.00022876,2]
[329179287,1718152308364,-1408.1,0.00022876,2]
[329179288,1718152308375,-2273.45,0.00022876,2]
[329179289,1718152308386,-500.0,0.00022876,2]
[329179290,1718152308397,-1209.21,0.00022876,2]
[329179291,1718152308413,-930.43,0.00022876,2]
[329179292,1718152308425,-788.93,0.00022876,2]
[329179293,1718152308437,-1170.24,0.00022876,2]
[329179294,1718152308449,-13437.77,0.00022876,2]
[329179295,1718152308460,-1149.05,0.00022876,2]
[329179296,1718152308473,-3818.53,0.00022876,2]
[329179297,1718152308485,-400.18756788,0.00022876,2]
[329179298,1718152308496,-3130.09,0.00022876,2]
[329179299,1718152308508,-1310.08,0.00022876,2]
[329179300,1718152308520,-937.79,0.00022876,2]
[329179301,1718152308531,-1636.15,0.00022876,2]
[329179302,1718152308542,-4252.32,0.00022876,2]
[329179303,1718152308554,-500.0,0.00022876,2]
[329179304,1718152308565,-500.0,0.00022876,2]
[329179305,1718152308577,-2992.8,0.00022876,2]
[329179306,1718152308587,-822.74,0.00022876,2]
[329179307,1718152308598,-1159.58,0.00022876,2]
[329179308,1718152308609,-2563.57,0.00022876,2]
[329179309,1718152308620,-500.0,0.00022876,2]
[329179310,1718152308632,-15717.99,0.00022876,2]
[329179311,1718152308644,-2005.55,0.00022876,2]